[Event "Titled Tuesday Blitz August 31 2021"]
[White "Maly, Alexey"]
[Black "Mostbauer, Maximilian"]
[WhiteFideId "14103184"]
[BlackFideId "1626680"]
[WhiteElo "2250"]
[BlackElo "2188"]
[Result "1/2-1/2"]
[Round "01"]
[TimeControl "180+1"]
[Date "2021.08.31"]
[WhiteClock "0:00:25"]
[BlackClock "0:00:34"]

1. d4 {[%clk 0:03:00]}  e6 {[%clk 0:02:56]} 2. c4 {[%clk 0:03:00]}  b6 {[%clk 0:02:56]} 3. Nf3 {[%clk 0:03:00]}  Bb7 {[%clk 0:02:57]} 4. g3 {[%clk 0:02:58]}  Nf6 {[%clk 0:02:58]} 5. Bg2 {[%clk 0:02:58]}  g6 {[%clk 0:02:58]} 6. O-O {[%clk 0:02:57]}  Bg7 {[%clk 0:02:59]} 7. b3 {[%clk 0:02:57]}  O-O {[%clk 0:02:59]} 8. Bb2 {[%clk 0:02:56]}  d6 {[%clk 0:02:59]} 9. Nbd2 {[%clk 0:02:56]}  Nbd7 {[%clk 0:03:00]} 10. Qc2 {[%clk 0:02:56]}  a5 {[%clk 0:02:56]} 11. e4 {[%clk 0:02:55]}  Qe7 {[%clk 0:02:56]} 12. Rfe1 {[%clk 0:02:53]}  e5 {[%clk 0:02:56]} 13. Rad1 {[%clk 0:02:52]}  h6 {[%clk 0:02:55]} 14. h3 {[%clk 0:02:51]}  Kh7 {[%clk 0:02:53]} 15. Kh2 {[%clk 0:02:51]}  Rae8 {[%clk 0:02:52]} 16. a3 {[%clk 0:02:50]}  Ng8 {[%clk 0:02:45]} 17. b4 {[%clk 0:02:47]}  axb4 {[%clk 0:02:43]} 18. axb4 {[%clk 0:02:48]}  Ra8 {[%clk 0:02:32]} 19. Ra1 {[%clk 0:02:45]}  Rxa1 {[%clk 0:02:29]} 20. Rxa1 {[%clk 0:02:43]}  Ra8 {[%clk 0:02:30]} 21. Rxa8 {[%clk 0:02:42]}  Bxa8 {[%clk 0:02:31]} 22. Qa4 {[%clk 0:02:40]}  Qd8 {[%clk 0:02:31]} 23. d5 {[%clk 0:02:36]}  Bb7 {[%clk 0:02:25]} 24. Ne1 {[%clk 0:02:31]}  Nf8 {[%clk 0:02:25]} 25. Nd3 {[%clk 0:02:29]}  Bc8 {[%clk 0:02:25]} 26. c5 {[%clk 0:02:26]}  bxc5 {[%clk 0:02:26]} 27. bxc5 {[%clk 0:02:27]}  f5 {[%clk 0:02:25]} 28. c6 {[%clk 0:02:18]}  fxe4 {[%clk 0:01:53]} 29. Nxe4 {[%clk 0:02:17]}  Bf5 {[%clk 0:01:53]} 30. Qa7 {[%clk 0:02:10]}  Bxe4 {[%clk 0:01:44]} 31. Bxe4 {[%clk 0:02:11]}  Nf6 {[%clk 0:01:45]} 32. f3 {[%clk 0:02:00]}  h5 {[%clk 0:01:33]} 33. Bc1 {[%clk 0:01:41]}  Nxe4 {[%clk 0:01:29]} 34. fxe4 {[%clk 0:01:40]}  h4 {[%clk 0:01:30]} 35. g4 {[%clk 0:01:37]}  Bh6 {[%clk 0:01:12]} 36. Bxh6 {[%clk 0:01:34]}  Kxh6 {[%clk 0:01:13]} 37. Qe3+ {[%clk 0:01:28]}  Kg7 {[%clk 0:01:14]} 38. Kg2 {[%clk 0:01:23]}  Nh7 {[%clk 0:01:14]} 39. Nf2 {[%clk 0:01:07]}  Ng5 {[%clk 0:00:45]} 40. Qa7 {[%clk 0:00:56]}  Kh6 {[%clk 0:00:46]} 41. Qe3 {[%clk 0:00:51]}  Kg7 {[%clk 0:00:45]} 42. Nd3 {[%clk 0:00:44]}  Qf6 {[%clk 0:00:43]} 43. Nf2 {[%clk 0:00:25]}  Qd8 {[%clk 0:00:34]} 1/2-1/2


[Site "https://www.chess.com"]

[Event "Titled Tuesday Blitz August 31 2021"]
[White "Manukyan, Artyom"]
[Black "Yeletsky, Ivan"]
[WhiteFideId "13305786"]
[BlackFideId "24180327"]
[WhiteElo "2034"]
[BlackElo "2344"]
[Result "0-1"]
[Round "01"]
[TimeControl "180+1"]
[Date "2021.08.31"]
[WhiteClock "0:00:16"]
[BlackClock "0:01:24"]

1. e4 {[%clk 0:03:00]}  Nf6 {[%clk 0:02:56]} 2. e5 {[%clk 0:02:59]}  Nd5 {[%clk 0:02:55]} 3. d4 {[%clk 0:03:00]}  d6 {[%clk 0:02:55]} 4. Nf3 {[%clk 0:03:00]}  dxe5 {[%clk 0:02:53]} 5. Nxe5 {[%clk 0:03:01]}  c6 {[%clk 0:02:53]} 6. Be2 {[%clk 0:03:01]}  Bf5 {[%clk 0:02:52]} 7. Nf3 {[%clk 0:03:02]}  e6 {[%clk 0:02:51]} 8. O-O {[%clk 0:03:02]}  Bd6 {[%clk 0:02:51]} 9. c4 {[%clk 0:03:02]}  Nf4 {[%clk 0:02:51]} 10. Bxf4 {[%clk 0:02:54]}  Bxf4 {[%clk 0:02:51]} 11. Nc3 {[%clk 0:02:55]}  O-O {[%clk 0:02:48]} 12. Bd3 {[%clk 0:02:49]}  Bg4 {[%clk 0:02:43]} 13. h3 {[%clk 0:02:38]}  Bh5 {[%clk 0:02:38]} 14. Ne4 {[%clk 0:02:27]}  Nd7 {[%clk 0:02:25]} 15. Be2 {[%clk 0:02:18]}  Bg6 {[%clk 0:02:21]} 16. Nc3 {[%clk 0:02:05]}  e5 {[%clk 0:02:11]} 17. d5 {[%clk 0:01:38]}  e4 {[%clk 0:02:07]} 18. Nd4 {[%clk 0:01:34]}  Ne5 {[%clk 0:01:50]} 19. g3 {[%clk 0:01:24]}  Bg5 {[%clk 0:01:38]} 20. h4 {[%clk 0:01:06]}  Bxh4 {[%clk 0:01:33]} 21. gxh4 {[%clk 0:01:07]}  Qxh4 {[%clk 0:01:33]} 22. Qd2 {[%clk 0:01:06]}  c5 {[%clk 0:01:33]} 23. Nc2 {[%clk 0:01:01]}  Nf3+ {[%clk 0:01:33]} 24. Bxf3 {[%clk 0:00:55]}  exf3 {[%clk 0:01:33]} 25. Ne3 {[%clk 0:00:49]}  Rae8 {[%clk 0:01:33]} 26. d6 {[%clk 0:00:42]}  Re5 {[%clk 0:01:26]} 27. Ne2 {[%clk 0:00:20]}  Rh5 {[%clk 0:01:24]} 28. Ng3 {[%clk 0:00:16]}  Qh2# {[%clk 0:01:24]} 0-1


[Site "https://www.chess.com"]

[Event "Titled Tuesday Blitz August 31 2021"]
[White "Moroni, Luca Jr"]
[Black "Ilyasli, Ughur"]
[WhiteFideId "865834"]
[BlackFideId "13416197"]
[WhiteElo "2491"]
[BlackElo "2051"]
[Result "1-0"]
[Round "01"]
[TimeControl "180+1"]
[Date "2021.08.31"]
[WhiteClock "0:00:16"]
[BlackClock "0:00:01"]

1. d4 {[%clk 0:03:00]}  Nf6 {[%clk 0:02:35]} 2. c4 {[%clk 0:02:59]}  g6 {[%clk 0:02:36]} 3. Nc3 {[%clk 0:02:58]}  Bg7 {[%clk 0:02:37]} 4. e4 {[%clk 0:02:58]}  d6 {[%clk 0:02:37]} 5. Bd3 {[%clk 0:02:58]}  O-O {[%clk 0:02:37]} 6. Nge2 {[%clk 0:02:58]}  e5 {[%clk 0:02:37]} 7. d5 {[%clk 0:02:58]}  Nh5 {[%clk 0:02:31]} 8. O-O {[%clk 0:02:57]}  f5 {[%clk 0:02:28]} 9. exf5 {[%clk 0:02:55]}  gxf5 {[%clk 0:02:26]} 10. Ng3 {[%clk 0:02:53]}  Nxg3 {[%clk 0:02:23]} 11. fxg3 {[%clk 0:02:54]}  e4 {[%clk 0:02:23]} 12. Bc2 {[%clk 0:02:53]}  Nd7 {[%clk 0:02:20]} 13. g4 {[%clk 0:02:45]}  Nc5 {[%clk 0:02:11]} 14. Be3 {[%clk 0:02:39]}  Nd3 {[%clk 0:01:56]} 15. Bxd3 {[%clk 0:02:36]}  exd3 {[%clk 0:01:56]} 16. Qxd3 {[%clk 0:02:37]}  fxg4 {[%clk 0:01:56]} 17. Bd4 {[%clk 0:02:35]}  Qg5 {[%clk 0:01:53]} 18. Bxg7 {[%clk 0:02:22]}  Kxg7 {[%clk 0:01:46]} 19. Rxf8 {[%clk 0:02:16]}  Kxf8 {[%clk 0:01:45]} 20. Rf1+ {[%clk 0:02:17]}  Kg7 {[%clk 0:01:41]} 21. Nb5 {[%clk 0:02:12]}  Bd7 {[%clk 0:01:22]} 22. Nxc7 {[%clk 0:02:10]}  Rf8 {[%clk 0:01:17]} 23. Qd4+ {[%clk 0:01:55]}  Kg8 {[%clk 0:00:58]} 24. Re1 {[%clk 0:01:48]}  g3 {[%clk 0:00:44]} 25. Ne6 {[%clk 0:01:38]}  gxh2+ {[%clk 0:00:41]} 26. Kxh2 {[%clk 0:01:37]}  Bxe6 {[%clk 0:00:29]} 27. dxe6 {[%clk 0:01:38]}  Rf4 {[%clk 0:00:23]} 28. Qe3 {[%clk 0:01:20]}  Rh4+ {[%clk 0:00:07]} 29. Kg1 {[%clk 0:01:20]}  Qh5 {[%clk 0:00:08]} 30. Qg3+ {[%clk 0:01:03]}  Rg4 {[%clk 0:00:05]} 31. Qf3 {[%clk 0:00:34]}  Qc5+ {[%clk 0:00:04]} 32. Qf2 {[%clk 0:00:31]}  Qxf2+ {[%clk 0:00:04]} 33. Kxf2 {[%clk 0:00:31]}  Kf8 {[%clk 0:00:05]} 34. b3 {[%clk 0:00:28]}  Ke7 {[%clk 0:00:05]} 35. Rh1 {[%clk 0:00:26]}  Kxe6 {[%clk 0:00:05]} 36. Rxh7 {[%clk 0:00:26]}  Rd4 {[%clk 0:00:05]} 37. Ke3 {[%clk 0:00:23]}  Rg4 {[%clk 0:00:05]} 38. Kf3 {[%clk 0:00:22]}  Rd4 {[%clk 0:00:04]} 39. Rxb7 {[%clk 0:00:21]}  a5 {[%clk 0:00:03]} 40. Ra7 {[%clk 0:00:19]}  Ke5 {[%clk 0:00:02]} 41. Rxa5+ {[%clk 0:00:18]}  Ke6 {[%clk 0:00:03]} 42. g4 {[%clk 0:00:16]}  Rd1 {[%clk 0:00:02]} 43. Kf4 {[%clk 0:00:16]}  Rf1+ {[%clk 0:00:02]} 44. Kg5 {[%clk 0:00:16]}  Rg1 {[%clk 0:00:01]} 45. Rb5 {[%clk 0:00:16]} 1-0


[Site "https://www.chess.com"]

[Event "Titled Tuesday Blitz August 31 2021"]
[White "Naroditsky, Daniel"]
[Black "Rodchenkov, Vitaly"]
[WhiteFideId "2026961"]
[BlackFideId "4152964"]
[WhiteElo "2608"]
[BlackElo "2337"]
[Result "1-0"]
[Round "01"]
[TimeControl "180+1"]
[Date "2021.08.31"]
[WhiteClock "0:01:54"]
[BlackClock "0:00:59"]

1. c4 {[%clk 0:03:00]}  Nf6 {[%clk 0:02:55]} 2. Nc3 {[%clk 0:03:00]}  d5 {[%clk 0:02:53]} 3. cxd5 {[%clk 0:03:00]}  Nxd5 {[%clk 0:02:54]} 4. e4 {[%clk 0:02:59]}  Nxc3 {[%clk 0:02:53]} 5. bxc3 {[%clk 0:03:00]}  e5 {[%clk 0:02:51]} 6. Nf3 {[%clk 0:03:00]}  Nc6 {[%clk 0:02:47]} 7. Bc4 {[%clk 0:02:57]}  Bd6 {[%clk 0:02:47]} 8. O-O {[%clk 0:02:57]}  O-O {[%clk 0:02:47]} 9. h3 {[%clk 0:02:58]}  Qe7 {[%clk 0:02:45]} 10. Re1 {[%clk 0:02:54]}  Be6 {[%clk 0:02:41]} 11. Bxe6 {[%clk 0:02:52]}  Qxe6 {[%clk 0:02:41]} 12. d4 {[%clk 0:02:52]}  Qe7 {[%clk 0:02:32]} 13. Bg5 {[%clk 0:02:48]}  f6 {[%clk 0:02:31]} 14. Qb3+ {[%clk 0:02:48]}  Kh8 {[%clk 0:02:30]} 15. Qxb7 {[%clk 0:02:47]}  Nxd4 {[%clk 0:02:23]} 16. cxd4 {[%clk 0:02:40]}  fxg5 {[%clk 0:02:23]} 17. dxe5 {[%clk 0:02:39]}  Bxe5 {[%clk 0:02:22]} 18. Nxe5 {[%clk 0:02:36]}  Qxe5 {[%clk 0:02:22]} 19. Rac1 {[%clk 0:02:37]}  Qf4 {[%clk 0:01:55]} 20. Rc2 {[%clk 0:02:34]}  g4 {[%clk 0:01:53]} 21. Qxc7 {[%clk 0:02:20]}  gxh3 {[%clk 0:01:51]} 22. Qxf4 {[%clk 0:02:18]}  Rxf4 {[%clk 0:01:51]} 23. gxh3 {[%clk 0:02:17]}  Kg8 {[%clk 0:01:50]} 24. Kg2 {[%clk 0:02:14]}  Rb8 {[%clk 0:01:49]} 25. Kg3 {[%clk 0:02:13]}  Rf6 {[%clk 0:01:46]} 26. Re3 {[%clk 0:02:09]}  Ra6 {[%clk 0:01:45]} 27. e5 {[%clk 0:02:05]}  Kf8 {[%clk 0:01:40]} 28. Rc7 {[%clk 0:02:02]}  h5 {[%clk 0:01:20]} 29. e6 {[%clk 0:01:59]}  Rxa2 {[%clk 0:01:15]} 30. Rf3+ {[%clk 0:01:53]}  Kg8 {[%clk 0:01:14]} 31. Rff7 {[%clk 0:01:54]}  Re2 {[%clk 0:01:02]} 32. Rxg7+ {[%clk 0:01:53]}  Kh8 {[%clk 0:00:59]} 33. Rh7+ {[%clk 0:01:52]}  Kg8 {[%clk 0:00:58]} 34. Rcg7+ {[%clk 0:01:53]}  Kf8 {[%clk 0:00:59]} 35. e7+ {[%clk 0:01:54]} 1-0


[Site "https://www.chess.com"]

[Event "Titled Tuesday Blitz August 31 2021"]
[White "Nguyen Hong Nhung"]
[Black "Dang, Hoang Son"]
[WhiteFideId "12412201"]
[BlackFideId "12402435"]
[WhiteElo "1661"]
[BlackElo "2248"]
[Result "1/2-1/2"]
[Round "01"]
[TimeControl "180+1"]
[Date "2021.08.31"]
[WhiteClock "0:00:05"]
[BlackClock "0:00:04"]

1. e4 {[%clk 0:02:50]}  g6 {[%clk 0:02:58]} 2. d4 {[%clk 0:02:50]}  Bg7 {[%clk 0:02:57]} 3. Nc3 {[%clk 0:02:50]}  d6 {[%clk 0:02:57]} 4. f4 {[%clk 0:02:50]}  Nd7 {[%clk 0:02:56]} 5. Nf3 {[%clk 0:02:50]}  a6 {[%clk 0:02:53]} 6. Bd3 {[%clk 0:02:47]}  c5 {[%clk 0:02:53]} 7. dxc5 {[%clk 0:02:35]}  Nxc5 {[%clk 0:02:53]} 8. O-O {[%clk 0:02:34]}  Nf6 {[%clk 0:02:51]} 9. Be3 {[%clk 0:02:27]}  O-O {[%clk 0:02:50]} 10. Kh1 {[%clk 0:02:26]}  b5 {[%clk 0:02:44]} 11. e5 {[%clk 0:02:17]}  Ng4 {[%clk 0:02:43]} 12. Bg1 {[%clk 0:02:13]}  Bb7 {[%clk 0:02:43]} 13. h3 {[%clk 0:02:07]}  Nh6 {[%clk 0:02:34]} 14. Qe2 {[%clk 0:02:02]}  Nxd3 {[%clk 0:02:31]} 15. Qxd3 {[%clk 0:02:02]}  dxe5 {[%clk 0:02:28]} 16. fxe5 {[%clk 0:02:02]}  Qxd3 {[%clk 0:02:23]} 17. cxd3 {[%clk 0:02:02]}  Nf5 {[%clk 0:02:23]} 18. Rfe1 {[%clk 0:01:55]}  Rfd8 {[%clk 0:02:20]} 19. Rad1 {[%clk 0:01:51]}  Rac8 {[%clk 0:02:10]} 20. d4 {[%clk 0:01:46]}  e6 {[%clk 0:02:08]} 21. Bf2 {[%clk 0:01:43]}  b4 {[%clk 0:01:57]} 22. Ne4 {[%clk 0:01:41]}  Rc2 {[%clk 0:01:57]} 23. Rd2 {[%clk 0:01:38]}  Rdc8 {[%clk 0:01:37]} 24. g4 {[%clk 0:01:21]}  Rxd2 {[%clk 0:01:03]} 25. Nexd2 {[%clk 0:01:21]}  Rc2 {[%clk 0:00:57]} 26. Kg1 {[%clk 0:01:20]}  Ne7 {[%clk 0:00:56]} 27. Rb1 {[%clk 0:01:13]}  Bd5 {[%clk 0:00:52]} 28. a3 {[%clk 0:01:10]}  b3 {[%clk 0:00:49]} 29. Be3 {[%clk 0:01:09]}  h5 {[%clk 0:00:42]} 30. Ne1 {[%clk 0:01:07]}  Rc8 {[%clk 0:00:39]} 31. Kf2 {[%clk 0:01:06]}  hxg4 {[%clk 0:00:38]} 32. hxg4 {[%clk 0:01:06]}  a5 {[%clk 0:00:38]} 33. Nd3 {[%clk 0:01:04]}  a4 {[%clk 0:00:36]} 34. Nc5 {[%clk 0:01:04]}  Bc6 {[%clk 0:00:36]} 35. Rc1 {[%clk 0:01:02]}  Be8 {[%clk 0:00:36]} 36. Rc4 {[%clk 0:00:58]}  Nd5 {[%clk 0:00:34]} 37. Nde4 {[%clk 0:00:51]}  Bb5 {[%clk 0:00:32]} 38. Rc1 {[%clk 0:00:43]}  Bf8 {[%clk 0:00:29]} 39. Rh1 {[%clk 0:00:37]}  Bg7 {[%clk 0:00:24]} 40. Nd6 {[%clk 0:00:36]}  Rb8 {[%clk 0:00:25]} 41. Nxb5 {[%clk 0:00:35]}  Rxb5 {[%clk 0:00:26]} 42. Nxa4 {[%clk 0:00:36]}  f6 {[%clk 0:00:20]} 43. exf6 {[%clk 0:00:34]}  Nxf6 {[%clk 0:00:20]} 44. Kf3 {[%clk 0:00:34]}  e5 {[%clk 0:00:18]} 45. dxe5 {[%clk 0:00:33]}  Rxe5 {[%clk 0:00:19]} 46. Bf4 {[%clk 0:00:32]}  Rd5 {[%clk 0:00:19]} 47. Rh2 {[%clk 0:00:28]}  g5 {[%clk 0:00:18]} 48. Be3 {[%clk 0:00:27]}  Rd3 {[%clk 0:00:18]} 49. Ke2 {[%clk 0:00:28]}  Rxe3+ {[%clk 0:00:19]} 50. Kxe3 {[%clk 0:00:27]}  Nxg4+ {[%clk 0:00:19]} 51. Kd3 {[%clk 0:00:28]}  Nxh2 {[%clk 0:00:20]} 52. Nc5 {[%clk 0:00:28]}  Bxb2 {[%clk 0:00:17]} 53. a4 {[%clk 0:00:28]}  g4 {[%clk 0:00:18]} 54. Nxb3 {[%clk 0:00:19]}  g3 {[%clk 0:00:14]} 55. Ke2 {[%clk 0:00:19]}  Kf7 {[%clk 0:00:14]} 56. Nd2 {[%clk 0:00:19]}  Ke6 {[%clk 0:00:11]} 57. Ne4 {[%clk 0:00:18]}  Be5 {[%clk 0:00:11]} 58. a5 {[%clk 0:00:17]}  Bb8 {[%clk 0:00:09]} 59. a6 {[%clk 0:00:16]}  g2 {[%clk 0:00:07]} 60. Kf2 {[%clk 0:00:16]}  Ng4+ {[%clk 0:00:07]} 61. Kxg2 {[%clk 0:00:16]}  Kd5 {[%clk 0:00:08]} 62. Nc3+ {[%clk 0:00:14]}  Kc6 {[%clk 0:00:09]} 63. Ne4 {[%clk 0:00:13]}  Kb6 {[%clk 0:00:08]} 64. Kf3 {[%clk 0:00:13]}  Ne5+ {[%clk 0:00:08]} 65. Ke3 {[%clk 0:00:13]}  Kxa6 {[%clk 0:00:09]} 66. Nc5+ {[%clk 0:00:13]}  Kb5 {[%clk 0:00:09]} 67. Nd3 {[%clk 0:00:14]}  Nc4+ {[%clk 0:00:09]} 68. Ke4 {[%clk 0:00:13]}  Ba7 {[%clk 0:00:07]} 69. Ne5 {[%clk 0:00:13]}  Nd6+ {[%clk 0:00:06]} 70. Kd5 {[%clk 0:00:13]}  Nf5 {[%clk 0:00:06]} 71. Nf7 {[%clk 0:00:13]}  Ne3+ {[%clk 0:00:05]} 72. Ke4 {[%clk 0:00:11]}  Kc4 {[%clk 0:00:04]} 73. Ne5+ {[%clk 0:00:12]}  Kc3 {[%clk 0:00:05]} 74. Nc6 {[%clk 0:00:12]}  Bc5 {[%clk 0:00:04]} 75. Ne5 {[%clk 0:00:12]}  Nd1 {[%clk 0:00:05]} 76. Nd7 {[%clk 0:00:12]}  Bd4 {[%clk 0:00:05]} 77. Kd5 {[%clk 0:00:12]}  Kd3 {[%clk 0:00:05]} 78. Nc5+ {[%clk 0:00:12]}  Ke3 {[%clk 0:00:05]} 79. Nd7 {[%clk 0:00:11]}  Nc3+ {[%clk 0:00:05]} 80. Ke6 {[%clk 0:00:12]}  Ne4 {[%clk 0:00:04]} 81. Ke7 {[%clk 0:00:09]}  Ba7 {[%clk 0:00:03]} 82. Nf8 {[%clk 0:00:08]}  Kd4 {[%clk 0:00:03]} 83. Ne6+ {[%clk 0:00:08]}  Kd5 {[%clk 0:00:03]} 84. Nc7+ {[%clk 0:00:08]}  Ke5 {[%clk 0:00:04]} 85. Ne6 {[%clk 0:00:09]}  Nf6 {[%clk 0:00:03]} 86. Kf7 {[%clk 0:00:09]}  Be3 {[%clk 0:00:03]} 87. Ng7 {[%clk 0:00:09]}  Ne4 {[%clk 0:00:03]} 88. Kg6 {[%clk 0:00:09]}  Bc5 {[%clk 0:00:02]} 89. Nh5 {[%clk 0:00:09]}  Nd6 {[%clk 0:00:02]} 90. Ng7 {[%clk 0:00:09]}  Nc8 {[%clk 0:00:01]} 91. Ne8 {[%clk 0:00:09]}  Ne7+ {[%clk 0:00:02]} 92. Kf7 {[%clk 0:00:09]}  Nf5 {[%clk 0:00:02]} 93. Ng7 {[%clk 0:00:10]}  Nd6+ {[%clk 0:00:03]} 94. Kg6 {[%clk 0:00:10]}  Ne4 {[%clk 0:00:03]} 95. Nh5 {[%clk 0:00:10]}  Be7 {[%clk 0:00:03]} 96. Ng7 {[%clk 0:00:11]}  Bf6 {[%clk 0:00:04]} 97. Nf5 {[%clk 0:00:11]}  Nd2 {[%clk 0:00:03]} 98. Nh6 {[%clk 0:00:11]}  Bd8 {[%clk 0:00:04]} 99. Ng4+ {[%clk 0:00:11]}  Ke6 {[%clk 0:00:04]} 100. Nh6 {[%clk 0:00:12]}  Nf3 {[%clk 0:00:04]} 101. Kh5 {[%clk 0:00:11]}  Bf6 {[%clk 0:00:04]} 102. Kg4 {[%clk 0:00:11]}  Ne5+ {[%clk 0:00:04]} 103. Kh5 {[%clk 0:00:11]}  Bg7 {[%clk 0:00:03]} 104. Ng4 {[%clk 0:00:11]}  Nd3 {[%clk 0:00:03]} 105. Kg6 {[%clk 0:00:09]}  Bd4 {[%clk 0:00:03]} 106. Kg5 {[%clk 0:00:09]}  Be3+ {[%clk 0:00:03]} 107. Kh4 {[%clk 0:00:09]}  Bf4 {[%clk 0:00:03]} 108. Kh3 {[%clk 0:00:08]}  Kf5 {[%clk 0:00:03]} 109. Nh2 {[%clk 0:00:06]}  Ke4 {[%clk 0:00:02]} 110. Kg2 {[%clk 0:00:06]}  Bc7 {[%clk 0:00:03]} 111. Ng4 {[%clk 0:00:06]}  Kf4 {[%clk 0:00:03]} 112. Nf2 {[%clk 0:00:06]}  Ne1+ {[%clk 0:00:02]} 113. Kf1 {[%clk 0:00:06]}  Ba5 {[%clk 0:00:03]} 114. Ke2 {[%clk 0:00:05]}  Nf3 {[%clk 0:00:03]} 115. Nd3+ {[%clk 0:00:05]}  Kg3 {[%clk 0:00:04]} 1/2-1/2


[Site "https://www.chess.com"]

[Event "Titled Tuesday Blitz August 31 2021"]
[White "Nurmanova, Alua"]
[Black "Murzin, Volodar"]
[WhiteFideId "13729390"]
[BlackFideId "44155573"]
[WhiteElo "1869"]
[BlackElo "2541"]
[Result "0-1"]
[Round "01"]
[TimeControl "180+1"]
[Date "2021.08.31"]
[WhiteClock "0:00:09"]
[BlackClock "0:00:12"]

1. e4 {[%clk 0:02:58]}  c6 {[%clk 0:02:59]} 2. d4 {[%clk 0:02:58]}  d5 {[%clk 0:02:58]} 3. e5 {[%clk 0:02:57]}  Bf5 {[%clk 0:02:57]} 4. h4 {[%clk 0:02:53]}  h5 {[%clk 0:02:56]} 5. Bd3 {[%clk 0:02:53]}  Bxd3 {[%clk 0:02:56]} 6. Qxd3 {[%clk 0:02:53]}  Qa5+ {[%clk 0:02:55]} 7. Nd2 {[%clk 0:02:53]}  e6 {[%clk 0:02:54]} 8. Nf3 {[%clk 0:02:51]}  Nh6 {[%clk 0:02:52]} 9. O-O {[%clk 0:02:49]}  Nf5 {[%clk 0:02:51]} 10. c4 {[%clk 0:02:46]}  Be7 {[%clk 0:02:50]} 11. g3 {[%clk 0:02:45]}  O-O {[%clk 0:02:49]} 12. a3 {[%clk 0:02:44]}  Rd8 {[%clk 0:02:26]} 13. b4 {[%clk 0:02:40]}  Qa6 {[%clk 0:02:19]} 14. Qc3 {[%clk 0:02:39]}  Nd7 {[%clk 0:02:10]} 15. c5 {[%clk 0:02:36]}  Qa4 {[%clk 0:01:53]} 16. Nb3 {[%clk 0:02:31]}  b6 {[%clk 0:01:49]} 17. Bb2 {[%clk 0:02:18]}  a5 {[%clk 0:01:40]} 18. cxb6 {[%clk 0:02:12]}  axb4 {[%clk 0:01:29]} 19. axb4 {[%clk 0:02:10]}  Qxb4 {[%clk 0:01:10]} 20. Qxb4 {[%clk 0:01:57]}  Bxb4 {[%clk 0:01:08]} 21. b7 {[%clk 0:01:53]}  Rab8 {[%clk 0:01:03]} 22. Ra7 {[%clk 0:01:49]}  c5 {[%clk 0:00:56]} 23. dxc5 {[%clk 0:01:41]}  Bxc5 {[%clk 0:00:43]} 24. Nxc5 {[%clk 0:01:31]}  Nxc5 {[%clk 0:00:43]} 25. Nd4 {[%clk 0:00:55]}  Rxb7 {[%clk 0:00:37]} 26. Rxb7 {[%clk 0:00:53]}  Nxb7 {[%clk 0:00:37]} 27. Nxf5 {[%clk 0:00:53]}  exf5 {[%clk 0:00:37]} 28. Bd4 {[%clk 0:00:50]}  Rd7 {[%clk 0:00:35]} 29. Rc1 {[%clk 0:00:49]}  Nd8 {[%clk 0:00:35]} 30. Rc8 {[%clk 0:00:48]}  Kh7 {[%clk 0:00:35]} 31. Rc2 {[%clk 0:00:34]}  Ne6 {[%clk 0:00:34]} 32. Rd2 {[%clk 0:00:34]}  f4 {[%clk 0:00:33]} 33. Kg2 {[%clk 0:00:33]}  Kg6 {[%clk 0:00:31]} 34. Kf3 {[%clk 0:00:28]}  fxg3 {[%clk 0:00:31]} 35. fxg3 {[%clk 0:00:28]}  Kf5 {[%clk 0:00:30]} 36. Ke3 {[%clk 0:00:26]}  Rb7 {[%clk 0:00:24]} 37. Rd3 {[%clk 0:00:18]}  Kg4 {[%clk 0:00:22]} 38. Kf2 {[%clk 0:00:17]}  Rc7 {[%clk 0:00:16]} 39. Be3 {[%clk 0:00:17]}  Rc2+ {[%clk 0:00:16]} 40. Bd2 {[%clk 0:00:15]}  Nc5 {[%clk 0:00:13]} 41. Rxd5 {[%clk 0:00:07]}  Rxd2+ {[%clk 0:00:12]} 42. Rxd2 {[%clk 0:00:07]}  Ne4+ {[%clk 0:00:13]} 43. Ke3 {[%clk 0:00:08]}  Nxd2 {[%clk 0:00:13]} 44. Kxd2 {[%clk 0:00:09]}  Kxg3 {[%clk 0:00:14]} 45. Ke3 {[%clk 0:00:09]}  Kxh4 {[%clk 0:00:12]} 46. e6 {[%clk 0:00:09]}  fxe6 {[%clk 0:00:12]} 0-1


[Site "https://www.chess.com"]

[Event "Titled Tuesday Blitz August 31 2021"]
[White "Omariev, Maksim"]
[Black "Le, Tuan Minh"]
[WhiteFideId "4193423"]
[BlackFideId "12401153"]
[WhiteElo "2447"]
[BlackElo "2450"]
[Result "0-1"]
[Round "01"]
[TimeControl "180+1"]
[Date "2021.08.31"]
[WhiteClock "0:00:14"]
[BlackClock "0:00:21"]

1. g4 {[%clk 0:02:57]}  d5 {[%clk 0:02:46]} 2. Bg2 {[%clk 0:02:58]}  c6 {[%clk 0:02:41]} 3. h3 {[%clk 0:02:57]}  e5 {[%clk 0:02:39]} 4. d4 {[%clk 0:02:57]}  exd4 {[%clk 0:02:35]} 5. Qxd4 {[%clk 0:02:58]}  Be6 {[%clk 0:02:34]} 6. Nf3 {[%clk 0:02:55]}  Nd7 {[%clk 0:02:33]} 7. Ng5 {[%clk 0:02:52]}  Qb6 {[%clk 0:02:04]} 8. Nxe6 {[%clk 0:02:49]}  fxe6 {[%clk 0:02:04]} 9. Qxb6 {[%clk 0:02:45]}  axb6 {[%clk 0:02:05]} 10. b3 {[%clk 0:02:37]}  Be7 {[%clk 0:01:46]} 11. Bb2 {[%clk 0:02:37]}  Bf6 {[%clk 0:01:45]} 12. Nc3 {[%clk 0:02:31]}  b5 {[%clk 0:01:41]} 13. a4 {[%clk 0:02:18]}  bxa4 {[%clk 0:01:29]} 14. Rxa4 {[%clk 0:02:12]}  Rxa4 {[%clk 0:01:29]} 15. Nxa4 {[%clk 0:02:11]}  Bxb2 {[%clk 0:01:30]} 16. Nxb2 {[%clk 0:02:11]}  Ngf6 {[%clk 0:01:31]} 17. Kd2 {[%clk 0:02:07]}  Ke7 {[%clk 0:01:26]} 18. Ra1 {[%clk 0:02:07]}  Kd6 {[%clk 0:01:21]} 19. Ra7 {[%clk 0:02:05]}  Kc7 {[%clk 0:01:20]} 20. Nd3 {[%clk 0:02:02]}  e5 {[%clk 0:01:05]} 21. f4 {[%clk 0:01:49]}  exf4 {[%clk 0:01:03]} 22. Nxf4 {[%clk 0:01:48]}  Re8 {[%clk 0:01:03]} 23. Ra1 {[%clk 0:01:22]}  Nc5 {[%clk 0:01:01]} 24. Rf1 {[%clk 0:01:17]}  Kd6 {[%clk 0:01:01]} 25. Nd3 {[%clk 0:01:10]}  Nce4+ {[%clk 0:00:56]} 26. Bxe4 {[%clk 0:01:09]}  Nxe4+ {[%clk 0:00:57]} 27. Ke1 {[%clk 0:00:52]}  Ra8 {[%clk 0:00:54]} 28. Nf2 {[%clk 0:00:32]}  Ra1+ {[%clk 0:00:45]} 29. Nd1 {[%clk 0:00:33]}  Nc3 {[%clk 0:00:40]} 30. Kd2 {[%clk 0:00:31]}  Rxd1+ {[%clk 0:00:40]} 31. Rxd1 {[%clk 0:00:31]}  Nxd1 {[%clk 0:00:41]} 32. Kxd1 {[%clk 0:00:31]}  Ke5 {[%clk 0:00:42]} 33. e3 {[%clk 0:00:27]}  Ke4 {[%clk 0:00:26]} 34. Ke2 {[%clk 0:00:27]}  g5 {[%clk 0:00:27]} 35. c3 {[%clk 0:00:16]}  b6 {[%clk 0:00:20]} 36. c4 {[%clk 0:00:13]}  dxc4 {[%clk 0:00:19]} 37. bxc4 {[%clk 0:00:14]}  b5 {[%clk 0:00:20]} 38. cxb5 {[%clk 0:00:14]}  cxb5 {[%clk 0:00:21]} 39. Kd2 {[%clk 0:00:14]}  b4 {[%clk 0:00:21]} 0-1


[Site "https://www.chess.com"]